fUSD/lending_fUSD_20240213
["ID","MTS","AMOUNT","RATE_DAILY","PERIOD"]
[313919351,1707823850500,-500.0,0.00029889,2]
[313919352,1707823850510,-500.0,0.00029889,2]
[313919353,1707823850519,-500.0,0.00029889,2]
[313919354,1707823850529,-300.13861988,0.00029889,2]
[313919355,1707823850538,-500.0,0.00029889,2]
[313919356,1707823850548,-1474.43,0.00029889,2]
[313919357,1707823850557,-500.0,0.00029889,2]
[313919358,1707823850566,-835.02,0.00029889,2]
[313919359,1707823850576,-500.0,0.00029889,2]
[313919360,1707823850586,-714.04,0.00029889,2]
[313919361,1707823850595,-500.0,0.00029889,2]
[313919362,1707823850604,-500.0,0.00029889,2]
[313919363,1707823850615,-500.0,0.00029889,2]
[313919364,1707823850625,-500.0,0.00029889,2]
[313919365,1707823850634,-500.0,0.00029889,2]
[313919366,1707823850644,-547.59,0.00029889,2]
[313919367,1707823850654,-1562.04,0.00029889,2]
[313919368,1707823850663,-1088.36,0.00029889,2]
[313919369,1707823850673,-682.24,0.00029889,2]
[313919370,1707823850683,-500.0,0.00029889,2]
[313919371,1707823850693,-656.5,0.00029889,2]
[313919372,1707823850703,-500.0,0.00029889,2]
[313919373,1707823850713,-1750.39,0.00029889,2]
[313919374,1707823850723,-1786.42,0.00029889,2]
[313919375,1707823850732,-500.0,0.00029889,2]
[313919376,1707823850742,-500.0,0.00029889,2]
[313919377,1707823850752,-799.68,0.00029889,2]
[313919378,1707823850762,-500.0,0.00029889,2]
[313919379,1707823850772,-500.0,0.00029889,2]
[313919380,1707823850782,-500.0,0.00029889,2]
[313919381,1707823850792,-500.0,0.00029889,2]
[313919382,1707823850802,-650.86,0.00029889,2]
[313919383,1707823850812,-500.0,0.00029889,2]
[313919384,1707823850821,-500.0,0.00029889,2]
[313919385,1707823850832,-500.0,0.00029889,2]
[313919386,1707823850844,-1873.71,0.00029889,2]
[313919387,1707823850853,-1445.49,0.00029889,2]
[313919388,1707823850863,-500.0,0.00029889,2]
[313919389,1707823850872,-364.57328643,0.00029889,2]
[313919390,1707823850881,-552.15,0.00029889,2]
[313919391,1707823850891,-500.0,0.00029889,2]
[313919392,1707823850900,-500.0,0.00029889,2]
[313919393,1707823850910,-500.0,0.00029889,2]
[313919394,1707823850920,-500.0,0.00029889,2]
[313919395,1707823850930,-500.0,0.00029889,2]
[313919396,1707823850941,-500.55,0.00029889,2]
[313919397,1707823850950,-544.89,0.00029889,2]
[313919398,1707823850959,-529.89,0.00029889,2]
[313919399,1707823850968,-500.0,0.00029889,2]
[313919400,1707823850977,-500.0,0.00029889,2]
[313919401,1707823850986,-1167.13,0.00029889,2]
[313919402,1707823850996,-1691.15,0.00029889,2]
[313919403,1707823851005,-500.0,0.00029889,2]
[313919404,1707823851014,-500.0,0.00029889,2]
[313919405,1707823851027,-500.0,0.00029889,2]
[313919406,1707823851037,-525.08,0.00029889,2]
[313919407,1707823851046,-500.0,0.00029889,2]
[313919408,1707823851056,-500.0,0.00029889,2]
[313919409,1707823851065,-500.0,0.00029889,2]
[313919410,1707823851075,-500.0,0.00029889,2]
[313919411,1707823851084,-500.0,0.00029889,2]
[313919412,1707823851094,-1396.74,0.00029889,2]
[313919413,1707823851104,-1050.85,0.00029889,2]
[313919414,1707823851113,-562.43,0.00029889,2]
[313919415,1707823851123,-2526.49,0.00029889,2]
[313919416,1707823851136,-339.52288151,0.00029889,2]
[313919417,1707823851145,-500.0,0.00029889,2]
[313919418,1707823851155,-500.0,0.00029889,2]
[313919419,1707823851164,-587.49,0.00029889,2]
[313919420,1707823851174,-533.64154067,0.00029889,2]
[313919421,1707823851184,-500.0,0.00029889,2]
[313919422,1707823851193,-500.0,0.00029889,2]
[313919423,1707823851203,-500.0,0.00029889,2]
[313919424,1707823851212,-500.0,0.00029889,2]
[313919425,1707823851222,-22013.21,0.00029889,2]
[313919426,1707823851231,-500.0,0.00029889,2]
[313919427,1707823851241,-196.94034828,0.00029889,2]
[313919428,1707823851250,-500.0,0.00029889,2]
[313919429,1707823851259,-500.0,0.00029889,2]
[313919430,1707823851269,-980.47,0.00029889,2]
[313919431,1707823851278,-500.0,0.00029889,2]
[313919432,1707823851288,-376.41867287,0.00029889,2]
[313919433,1707823851301,-500.0,0.00029889,2]
[313919434,1707823851311,-500.0,0.00029889,2]
[313919435,1707823851321,-1644.37,0.00029889,2]
[313919436,1707823851331,-4024.1,0.00029889,2]
[313919437,1707823851342,-434.62213888,0.00029889,2]
[313919438,1707823851352,-500.0,0.00029889,2]
[313919439,1707823851366,-504.78,0.00029889,2]
[313919440,1707823851375,-500.0,0.00029889,2]
[313919441,1707823851385,-563.36,0.00029889,2]
[313919442,1707823851394,-500.0,0.00029889,2]
[313919443,1707823851403,-313.20042509,0.00029889,2]
[313919444,1707823851413,-538.99,0.00029889,2]
[313919445,1707823851422,-500.0,0.00029889,2]
[313919446,1707823851431,-1049.6,0.00029889,2]
[313919447,1707823851442,-513.64,0.00029889,2]
[313919448,1707823851451,-500.0,0.00029889,2]
[313919449,1707823851461,-1057.39,0.00029889,2]
[313919450,1707823851470,-500.0,0.00029889,2]
[313919451,1707823851480,-500.0,0.00029889,2]
[313919452,1707823851490,-500.0,0.00029889,2]
[313919453,1707823851499,-239.46563263,0.00029897,2]
[313919454,1707823851509,-1020.40318,0.000299,2]
[313919455,1707823851521,-475454.98828224,0.000299,3]
[313919456,1707823851530,-312.5529508,0.00029943,2]
[313919457,1707823851540,-1255.75020522,0.0002995,2]
[313919458,1707823851549,-151.0,0.00029979,2]
[313919459,1707823851559,-3174.4021885,0.00029979,2]
[313919460,1707823851568,-55048.4633298,0.00029979,2]
[313919461,1707823851578,-1853.5641504,0.00029979,2]
[313919462,1707823851588,-1874.2190436,0.00029979,2]
[313919463,1707823851598,-578.08836973,0.00029986,2]
[313919464,1707823851607,-239.46563263,0.00029997,2]
[313919465,1707823851617,-50000.0,0.0003,2]
[313919466,1707823851627,-695.71696065,0.0003,4]
[313919467,1707823851636,-155.0,0.0003,2]
[313919468,1707823851646,-695.09084172,0.0003,2]
[313919469,1707823851655,-73383.11595309,0.0003,4]
[313919470,1707823851665,-172.42709545,0.0003,5]
[313919471,1707823851676,-822.47475008,0.0003,4]
[313919472,1707823851686,-361.04978127,0.0003,2]
[313919473,1707823851695,-155.36994343,0.0003,2]
[313919474,1707823851704,-1176.3664217,0.0003,4]
[313919475,1707823851714,-293803.7070924,0.0003,2]
[313919476,1707823851723,-19148.63208535,0.0003,4]
[313919477,1707823851733,-1587.14187147,0.0003,4]
[313919478,1707823851743,-5647.71096775,0.0003,2]
[313919479,1707823851756,-457.73073713,0.0003,4]
[313919480,1707823851766,-2656.46928812,0.0003,4]
[313919481,1707823851775,-1817.93660883,0.0003,4]
[313919482,1707823851785,-623.85914324,0.0003,4]
[313919483,1707823851795,-1605.08660143,0.0003,4]
[313919484,1707823851805,-9691.84851642,0.0003,2]
[313919485,1707823851814,-407.02955874,0.0003,4]
[313919486,1707823851825,-1060.38409947,0.0003,4]
[313919487,1707823851834,-698.76108337,0.0003,2]
[313919488,1707823851844,-195.65276359,0.0003,4]
[313919489,1707823851854,-5000.0,0.0003,2]
[313919490,1707823851864,-5000.0,0.0003,5]
[313919491,1707823851874,-5000.0,0.0003,7]
[313919492,1707823851883,-5000.0,0.0003,10]
[313919493,1707823851893,-155.22141492,0.0003,4]
[313919494,1707823851903,-297.94416444,0.0003,4]
[313919495,1707823851913,-1436.19834942,0.0003,4]
[313919496,1707823851922,-70356.0,0.0003,2]
[313919497,1707823851931,-5000.0,0.0003,30]
[313919498,1707823851941,-3000.0,0.0003,2]
[313919499,1707823851950,-5355.061151,0.0003,2]
[313919500,1707823851961,-154.33,0.0003,2]
[313919501,1707823851971,-154.33,0.0003,2]
[313919502,1707823851980,-1760.45341,0.0003,2]
[313919503,1707823851990,-1000.0,0.0003,2]
[313919504,1707823852000,-205.0,0.0003,2]
[313919505,1707823852009,-5639.109719,0.0003001,2]
[313919506,1707823852019,-720.1,0.00030036,2]
[313919507,1707823852028,-500.0,0.00030036,2]
[313919508,1707823852038,-509.43716211,0.00030036,2]
[313919509,1707823852049,-1000.0,0.00030036,7]
[313919510,1707823852059,-500.0,0.00030036,2]
[313919511,1707823852069,-500.0,0.00030036,2]
[313919512,1707823852078,-1133.91,0.00030036,2]
[313919513,1707823852088,-500.0,0.00030036,2]
[313919514,1707823852097,-500.0,0.00030036,2]
[313919515,1707823852107,-562.4,0.00030036,2]
[313919516,1707823852117,-513.28377821,0.00030036,2]
[313919517,1707823852128,-1402.387676,0.00030095,2]
[313919518,1707823852137,-4727.11,0.000301,3]
[313919519,1707823852146,-200.0,0.000301,2]
[313919520,1707823852155,-40561.6230426,0.00030116,2]
[313919521,1707823852165,-1365.7705557,0.00030116,2]
[313919522,1707823852174,-500.0,0.00030136,2]
[313919523,1707823852183,-500.0,0.00030136,2]
[313919524,1707823852193,-541.25,0.00030136,2]
[313919525,1707823852203,-541.25,0.00030136,2]
[313919526,1707823852212,-541.25,0.00030136,2]
[313919527,1707823852223,-541.25,0.00030136,2]
[313919528,1707823852232,-541.25,0.00030136,2]
[313919529,1707823852242,-197.31981185,0.00030137,7]
[313919530,1707823852252,-1555.87156547,0.00030137,7]
[313919531,1707823852262,-7808.94050678,0.00030137,7]
[313919532,1707823852272,-10953.1587724,0.00030137,7]
[313919533,1707823852281,-151.0,0.00030137,7]
[313919534,1707823852292,-151.0,0.00030137,7]
[313919535,1707823852302,-151.0,0.00030137,7]
[313919536,1707823852311,-151.0,0.00030137,7]
[313919537,1707823852321,-151.0,0.00030137,7]
[313919538,1707823852330,-151.0,0.00030137,7]
[313919539,1707823852341,-151.0,0.00030137,7]
[313919540,1707823852351,-151.0,0.00030137,7]
[313919541,1707823852363,-151.0,0.00030137,7]
[313919542,1707823852374,-151.0,0.00030137,7]
[313919543,1707823852385,-216.194898,0.00030137,7]
[313919544,1707823852394,-151.0,0.00030137,7]
[313919545,1707823852404,-151.0,0.00030137,7]
[313919546,1707823852415,-200.946732,0.00030137,7]
[313919547,1707823852425,-151.0,0.00030137,7]
[313919548,1707823852435,-151.0,0.00030137,7]
[313919549,1707823852446,-151.0,0.00030137,7]
[313919550,1707823852458,-151.0,0.00030137,7]
[313919551,1707823852467,-151.0,0.00030137,7]
[313919552,1707823852477,-243.954775,0.00030137,7]
[313919553,1707823852487,-151.65,0.00030137,2]
[313919554,1707823852497,-151.0,0.00030137,7]
[313919555,1707823852507,-151.0,0.00030137,7]
[313919556,1707823852516,-151.0,0.00030137,7]
[313919557,1707823852527,-151.0,0.00030137,7]
[313919558,1707823852537,-151.0,0.00030137,7]
[313919559,1707823852547,-151.0,0.00030137,7]
[313919560,1707823852557,-210.134181,0.00030137,7]
[313919561,1707823852575,-171.612614,0.00030137,7]
[313919562,1707823852589,-151.0,0.00030137,7]
[313919563,1707823852600,-151.0,0.00030137,7]
[313919564,1707823852609,-151.0,0.00030137,7]
[313919565,1707823852618,-151.0,0.00030137,7]
[313919566,1707823852628,-151.0,0.00030137,7]
[313919567,1707823852637,-247.121093,0.00030137,7]
[313919568,1707823852646,-151.0,0.00030137,7]
[313919569,1707823852655,-207.277111,0.00030137,7]
[313919570,1707823852664,-151.0,0.00030137,7]
[313919571,1707823852673,-151.0,0.00030137,7]
[313919572,1707823852683,-237.303277,0.00030137,7]
[313919573,1707823852693,-237.303277,0.00030137,7]
[313919574,1707823852703,-237.303277,0.00030137,7]
[313919575,1707823852713,-237.303277,0.00030137,7]
[313919576,1707823852723,-237.303277,0.00030137,7]
[313919577,1707823852733,-237.303277,0.00030137,7]
[313919578,1707823852742,-237.303277,0.00030137,7]
[313919579,1707823852751,-237.303277,0.00030137,7]
[313919580,1707823852760,-237.303277,0.00030137,7]
[313919581,1707823852771,-237.303277,0.00030137,7]
[313919582,1707823852781,-237.303277,0.00030137,7]
[313919583,1707823852791,-151.0,0.00030137,7]
[313919584,1707823852800,-237.303277,0.00030137,7]
[313919585,1707823852809,-151.0,0.00030137,7]
[313919586,1707823852819,-237.303277,0.00030137,7]
[313919587,1707823852829,-151.0,0.00030137,7]
[313919588,1707823852838,-237.303277,0.00030137,7]
[313919589,1707823852848,-151.0,0.00030137,7]
[313919590,1707823852857,-237.303277,0.00030137,7]
[313919591,1707823852866,-237.303277,0.00030137,7]
[313919592,1707823852876,-231.676894,0.00030137,7]
[313919593,1707823852885,-231.676894,0.00030137,7]
[313919594,1707823852894,-231.676894,0.00030137,7]
[313919595,1707823852903,-231.676894,0.00030137,7]
[313919596,1707823852913,-231.676894,0.00030137,7]
[313919597,1707823852922,-231.676894,0.00030137,7]
[313919598,1707823852931,-231.676894,0.00030137,7]
[313919599,1707823852940,-231.676894,0.00030137,7]
[313919600,1707823852950,-231.676894,0.00030137,7]
[313919601,1707823852959,-231.676894,0.00030137,7]
[313919602,1707823852969,-231.676894,0.00030137,7]
[313919603,1707823852978,-231.676894,0.00030137,7]
[313919604,1707823852988,-231.676894,0.00030137,7]
[313919605,1707823853000,-231.676894,0.00030137,7]
[313919606,1707823853009,-231.676894,0.00030137,7]
[313919607,1707823853019,-231.676894,0.00030137,7]
[313919608,1707823853028,-151.0,0.00030137,7]
[313919609,1707823853038,-151.61061,0.00030137,7]
[313919610,1707823853047,-166.409141,0.00030137,7]
[313919611,1707823853057,-173.70036,0.00030137,7]
[313919612,1707823853068,-151.0,0.00030137,7]
[313919613,1707823853077,-151.0,0.00030137,7]
[313919614,1707823853087,-169.551824,0.00030137,7]
[313919615,1707823853096,-151.0,0.00030137,7]
[313919616,1707823853106,-151.0,0.00030137,7]
[313919617,1707823853115,-151.0,0.00030137,7]
[313919618,1707823853125,-151.0,0.00030137,7]
[313919619,1707823853135,-151.0,0.00030137,7]
[313919620,1707823853144,-287.214896,0.00030137,7]
[313919621,1707823853154,-185.222728,0.00030137,7]
[313919622,1707823853164,-189.667133,0.00030137,7]
[313919623,1707823853173,-151.0,0.00030137,7]
[313919624,1707823853183,-151.0,0.00030137,7]
[313919625,1707823853193,-151.0,0.00030137,7]
[313919626,1707823853202,-151.0,0.00030137,7]
[313919627,1707823853212,-151.0,0.00030137,7]
[313919628,1707823853221,-151.0,0.00030137,7]
[313919629,1707823853231,-151.0,0.00030137,7]
[313919630,1707823853240,-151.0,0.00030137,7]
[313919631,1707823853250,-151.0,0.00030137,7]
[313919632,1707823853260,-151.0,0.00030137,7]
[313919633,1707823853272,-151.0,0.00030137,7]
[313919634,1707823853282,-151.0,0.00030137,7]
[313919635,1707823853292,-151.0,0.00030137,7]
[313919636,1707823853301,-151.0,0.00030137,7]
[313919637,1707823853311,-151.0,0.00030137,7]
[313919638,1707823853321,-151.0,0.00030137,7]
[313919639,1707823853330,-151.0,0.00030137,7]
[313919640,1707823853340,-151.0,0.00030137,7]
[313919641,1707823853350,-151.0,0.00030137,7]
[313919642,1707823853361,-151.0,0.00030137,7]
[313919643,1707823853372,-151.0,0.00030137,7]
[313919644,1707823853382,-151.0,0.00030137,7]
[313919645,1707823853392,-151.0,0.00030137,7]
[313919646,1707823853403,-151.0,0.00030137,7]
[313919647,1707823853412,-272.034788,0.00030137,7]
[313919648,1707823853422,-151.0,0.00030137,7]
[313919649,1707823853432,-151.0,0.00030137,7]
[313919650,1707823853444,-234.473523,0.00030137,7]
[313919651,1707823853455,-500.0,0.00030163,2]
[313919652,1707823853465,-500.0,0.00030163,7]
[313919653,1707823853474,-500.0,0.00030163,2]
[313919654,1707823853485,-552.93,0.00030163,2]
[313919655,1707823853494,-541.25,0.00030163,2]
[313919656,1707823853505,-500.0,0.00030163,2]
[313919657,1707823853515,-500.0,0.00030163,2]
[313919658,1707823853525,-500.0,0.00030163,2]
[313919659,1707823853535,-500.0,0.00030163,2]
[313919660,1707823853545,-500.0,0.00030163,2]
[313919661,1707823853555,-1228.16,0.00030163,2]
[313919662,1707823853565,-500.0,0.00030163,2]
[313919663,1707823853575,-1025.19,0.00030163,2]
[313919664,1707823853585,-352.78923656,0.00030163,2]
[313919665,1707823853596,-500.0,0.00030163,2]
[313919666,1707823853606,-500.0,0.00030163,2]
[313919667,1707823853616,-500.0,0.00030163,2]
[313919668,1707823853627,-383.41626154,0.00030163,2]
[313919669,1707823853637,-1474.43,0.00030163,2]
[313919670,1707823853646,-500.0,0.00030163,2]
[313919671,1707823853657,-835.02,0.00030163,2]
[313919672,1707823853666,-500.0,0.00030163,2]
[313919673,1707823853676,-714.04,0.00030163,2]
[313919674,1707823853686,-500.0,0.00030163,2]
[313919675,1707823853697,-500.0,0.00030163,2]
[313919676,1707823853707,-500.0,0.00030163,2]
[313919677,1707823853717,-500.0,0.00030163,2]
[313919678,1707823853727,-500.0,0.00030163,2]
[313919679,1707823853737,-1562.04,0.00030163,2]
[313919680,1707823853748,-1088.36,0.00030163,2]
[313919681,1707823853757,-682.24,0.00030163,2]
[313919682,1707823853767,-500.0,0.00030163,2]
[313919683,1707823853777,-656.5,0.00030163,2]
[313919684,1707823853787,-520.56071513,0.00030163,2]
[313919685,1707823853797,-1750.39,0.00030163,2]
[313919686,1707823853810,-1786.42,0.00030163,2]
[313919687,1707823853819,-500.0,0.00030163,2]
[313919688,1707823853829,-500.0,0.00030163,2]
[313919689,1707823853840,-799.68,0.00030163,2]
[313919690,1707823853849,-500.0,0.00030163,2]
[313919691,1707823853859,-500.0,0.00030163,2]
[313919692,1707823853870,-500.0,0.00030163,2]
[313919693,1707823853880,-500.0,0.00030163,2]
[313919694,1707823853890,-650.86,0.00030163,2]
[313919695,1707823853901,-500.0,0.00030163,2]
[313919696,1707823853911,-500.0,0.00030163,2]
[313919697,1707823853921,-500.0,0.00030163,2]
[313919698,1707823853931,-1873.71,0.00030163,2]
[313919699,1707823853941,-1445.49,0.00030163,2]
[313919700,1707823853951,-500.0,0.00030163,2]
[313919701,1707823853961,-552.15,0.00030163,2]
[313919702,1707823853970,-500.0,0.00030163,2]
[313919703,1707823853980,-500.0,0.00030163,2]
[313919704,1707823853990,-500.0,0.00030163,2]
[313919705,1707823854000,-500.0,0.00030163,2]
[313919706,1707823854009,-500.0,0.00030163,2]
[313919707,1707823854019,-500.55,0.00030163,2]
[313919708,1707823854029,-544.89,0.00030163,2]
[313919709,1707823854039,-500.0,0.00030163,2]
[313919710,1707823854049,-500.0,0.00030163,2]
[313919711,1707823854059,-1167.13,0.00030163,2]
[313919712,1707823854070,-1691.15,0.00030163,2]
[313919713,1707823854080,-500.0,0.00030163,2]
[313919714,1707823854090,-500.0,0.00030163,2]
[313919715,1707823854100,-500.0,0.00030163,2]
[313919716,1707823854110,-525.08,0.00030163,2]
[313919717,1707823854121,-500.0,0.00030163,2]
[313919718,1707823854130,-500.0,0.00030163,2]
[313919719,1707823854140,-500.0,0.00030163,2]
[313919720,1707823854151,-500.0,0.00030163,2]
[313919721,1707823854160,-500.0,0.00030163,2]
[313919722,1707823854170,-1396.74,0.00030163,2]
[313919723,1707823854181,-1050.85,0.00030163,2]
[313919724,1707823854191,-562.43,0.00030163,2]
[313919725,1707823854201,-2526.49,0.00030163,2]
[313919726,1707823854210,-500.0,0.00030163,2]
[313919727,1707823854221,-500.0,0.00030163,2]
[313919728,1707823854231,-587.49,0.00030163,2]
[313919729,1707823854241,-500.0,0.00030163,2]
[313919730,1707823854251,-306.90616013,0.00030163,2]
[313919731,1707823854262,-500.0,0.00030163,2]
[313919732,1707823854273,-500.0,0.00030163,2]
[313919733,1707823854283,-22013.21,0.00030163,2]
[313919734,1707823854293,-500.0,0.00030163,2]
[313919735,1707823854304,-203.75604357,0.00030163,2]
[313919736,1707823854314,-500.0,0.00030163,2]
[313919737,1707823854325,-980.47,0.00030163,2]
[313919738,1707823854335,-500.0,0.00030163,2]
[313919739,1707823854346,-500.0,0.00030163,2]
[313919740,1707823854356,-500.0,0.00030163,2]
[313919741,1707823854371,-4024.1,0.00030163,2]
[313919742,1707823854383,-1644.37,0.00030163,2]
[313919743,1707823854394,-525.37828618,0.00030163,2]
[313919744,1707823854404,-504.78,0.00030163,2]
[313919745,1707823854414,-563.36,0.00030163,2]
[313919746,1707823854425,-460.9707595,0.00030163,2]
[313919747,1707823854436,-500.0,0.00030163,2]
[313919748,1707823854447,-538.99,0.00030163,2]
[313919749,1707823854457,-500.0,0.00030163,2]
[313919750,1707823854466,-1049.6,0.00030163,2]
[313919751,1707823854476,-513.64,0.00030163,2]
[313919752,1707823854486,-500.0,0.00030163,2]
[313919753,1707823854496,-500.0,0.00030163,2]
[313919754,1707823854507,-1057.39,0.00030163,2]
[313919755,1707823854518,-440.55814376,0.00030163,2]
[313919756,1707823854529,-151.0,0.00030163,7]
[313919757,1707823854540,-500.0,0.00030163,2]
[313919758,1707823854550,-150.63,0.00030168,2]
[313919759,1707823854560,-17506.0,0.000302,3]
[313919760,1707823854570,-237.303277,0.000302,7]
[313919761,1707823854580,-237.303277,0.000302,7]
[313919762,1707823854590,-231.676894,0.000302,7]
[313919763,1707823854600,-231.676894,0.000302,7]
[313919764,1707823854610,-151.0,0.000302,7]
[313919765,1707823854620,-209.431058,0.000302,7]
[313919766,1707823854630,-2336.7127221,0.00030289,2]
[313919767,1707823854640,-595.48,0.000303,2]
[313919768,1707823854650,-720.1,0.0003031,2]
[313919769,1707823854660,-500.0,0.0003031,2]
[313919770,1707823854670,-1000.0,0.0003031,7]
[313919771,1707823854680,-151.0,0.0003031,7]
[313919772,1707823854690,-500.0,0.0003031,2]
[313919773,1707823854700,-544.47792027,0.0003031,2]
[313919774,1707823854710,-1133.91,0.0003031,2]
[313919775,1707823854720,-500.0,0.0003031,2]
[313919776,1707823854730,-500.0,0.0003031,2]
[313919777,1707823854740,-562.4,0.0003031,2]
[313919778,1707823854750,-17506.0,0.000304,5]
[313919779,1707823854759,-151.0,0.0003041,7]
[313919780,1707823854769,-249.34226,0.0003041,7]
[313919781,1707823854779,-500.0,0.0003041,2]
[313919782,1707823854789,-500.0,0.0003041,2]
[313919783,1707823854798,-500.0,0.00030437,2]
[313919784,1707823854808,-500.0,0.00030437,7]
[313919785,1707823854818,-500.0,0.00030437,2]
[313919786,1707823854827,-541.25,0.00030437,2]
[313919787,1707823854837,-500.0,0.00030437,2]
[313919788,1707823854848,-500.0,0.00030437,2]
[313919789,1707823854857,-500.0,0.00030437,2]
[313919790,1707823854867,-500.0,0.00030437,2]
[313919791,1707823854877,-500.0,0.00030437,2]
[313919792,1707823854887,-1228.16,0.00030437,2]
[313919793,1707823854897,-181.00101646,0.00030437,2]
[313919794,1707823854906,-1025.19,0.00030437,2]
[313919795,1707823854916,-500.0,0.00030437,2]
[313919796,1707823854926,-500.0,0.00030437,2]
[313919797,1707823854935,-500.0,0.00030437,2]
[313919798,1707823854945,-1474.43,0.00030437,2]
[313919799,1707823854955,-500.0,0.00030437,2]
[313919800,1707823854965,-835.02,0.00030437,2]
[313919801,1707823854974,-500.0,0.00030437,2]
[313919802,1707823854984,-714.04,0.00030437,2]
[313919803,1707823854993,-500.0,0.00030437,2]
[313919804,1707823855004,-500.0,0.00030437,2]
[313919805,1707823855014,-500.0,0.00030437,2]
[313919806,1707823855023,-500.0,0.00030437,2]
[313919807,1707823855033,-500.0,0.00030437,2]
[313919808,1707823855043,-1562.04,0.00030437,2]
[313919809,1707823855054,-1088.36,0.00030437,2]
[313919810,1707823855064,-682.24,0.00030437,2]
[313919811,1707823855074,-500.0,0.00030437,2]
[313919812,1707823855084,-656.5,0.00030437,2]
[313919813,1707823855095,-1750.39,0.00030437,2]
[313919814,1707823855105,-1786.42,0.00030437,2]
[313919815,1707823855115,-500.0,0.00030437,2]
[313919816,1707823855124,-500.0,0.00030437,2]
[313919817,1707823855134,-799.68,0.00030437,2]
[313919818,1707823855144,-500.0,0.00030437,2]
[313919819,1707823855153,-500.0,0.00030437,2]
[313919820,1707823855163,-500.0,0.00030437,2]
[313919821,1707823855173,-500.0,0.00030437,2]
[313919822,1707823855183,-650.86,0.00030437,2]
[313919823,1707823855193,-500.0,0.00030437,2]
[313919824,1707823855204,-500.0,0.00030437,2]
[313919825,1707823855214,-500.0,0.00030437,2]
[313919826,1707823855224,-1873.71,0.00030437,2]
[313919827,1707823855234,-1445.49,0.00030437,2]
[313919828,1707823855244,-500.0,0.00030437,2]
[313919829,1707823855254,-552.15,0.00030437,2]
[313919830,1707823855264,-500.0,0.00030437,2]
[313919831,1707823855274,-500.0,0.00030437,2]
[313919832,1707823855285,-500.0,0.00030437,2]
[313919833,1707823855295,-500.0,0.00030437,2]
[313919834,1707823855305,-500.0,0.00030437,2]
[313919835,1707823855315,-500.55,0.00030437,2]
[313919836,1707823855325,-544.89,0.00030437,2]
[313919837,1707823855335,-201.23003287,0.00030437,2]
[313919838,1707823855346,-500.0,0.00030437,2]
[313919839,1707823855358,-1167.13,0.00030437,2]
[313919840,1707823855370,-1691.15,0.00030437,2]
[313919841,1707823855381,-550.76047503,0.00030437,2]
[313919842,1707823855391,-500.0,0.00030437,2]
[313919843,1707823855401,-500.0,0.00030437,2]
[313919844,1707823855411,-525.08,0.00030437,2]
[313919845,1707823855421,-500.0,0.00030437,2]
[313919846,1707823855431,-438.50744858,0.00030437,2]
[313919848,1707823855441,-500.0,0.00030437,2]
[313919849,1707823855452,-500.0,0.00030437,2]
[313919850,1707823855462,-500.0,0.00030437,2]
[313919851,1707823855472,-1396.74,0.00030437,2]